fUSD/lending_fUSD_20260213
["ID","MTS","AMOUNT","RATE_DAILY","PERIOD"]
[405332758,1771008640607,-400.73548,0.00037488,30]
[405332759,1771008640621,-374.06,0.000375,2]
[405332760,1771008640634,-400.73548,0.00037688,30]
[405332761,1771008640647,-3487.0,0.00037835,2]
[405332762,1771008640661,-1337.0,0.00037835,2]
[405332763,1771008640673,-1288.0,0.00037835,2]
[405332764,1771008640687,-2450.0,0.00037835,2]
[405332765,1771008640700,-400.73548,0.00037888,30]
[405332766,1771008640714,-2762.32849186,0.0003797,2]
[405332767,1771008640727,-400.73548,0.00038088,30]
[405332768,1771008640739,-150996.8,0.000381,2]
[405332769,1771008640752,-400.73548,0.00038288,30]
[405332770,1771008640763,-593.56,0.000383,14]
[405332771,1771008640774,-1999.0,0.00038356,120]
[405332772,1771008640785,-1343.12,0.00038356,30]
[405332773,1771008640798,-150996.81,0.000384,14]
[405332774,1771008640812,-152.0,0.00038479,10]
[405332775,1771008640823,-400.73548,0.00038488,30]
[405332776,1771008640834,-2873.0,0.00038501,11]
[405332777,1771008640844,-375.0,0.0003857,2]
[405332778,1771008640855,-375.0,0.0003857,2]
[405332779,1771008640867,-375.0,0.0003857,2]
[405332780,1771008640881,-375.0,0.0003857,2]
[405332781,1771008640892,-375.0,0.0003857,2]
[405332782,1771008640903,-375.0,0.0003857,2]
[405332783,1771008640914,-375.0,0.0003857,2]
[405332784,1771008640925,-375.0,0.0003857,2]
[405332785,1771008640936,-375.0,0.0003857,2]
[405332786,1771008640948,-201.24429192,0.0003857,2]
[405332787,1771008640958,-375.0,0.00038582,2]
[405332788,1771008640970,-400.73548,0.00038688,30]
[405332789,1771008640981,-1327.05158,0.00039,120]
[405332790,1771008640992,-374.06,0.00039,30]
[405332791,1771008641003,-400.73548,0.00039088,30]
[405332792,1771008641015,-1999.0,0.00039178,120]
[405332793,1771008641026,-1327.05158,0.000392,120]
[405332794,1771008641042,-400.73548,0.00039288,30]
[405332795,1771008641053,-10317.95139985,0.000393,30]
[405332796,1771008641064,-151.0,0.00039397,14]
[405332797,1771008641075,-150.0,0.000394,59]
[405332798,1771008641087,-1327.05158,0.000394,120]
[405332799,1771008641097,-649209.13213287,0.000394,7]
[405332800,1771008641109,-800.0,0.000394,14]
[405332801,1771008641120,-800.0,0.000394,14]
[405332802,1771008641131,-800.0,0.000394,14]
[405332803,1771008641143,-800.0,0.000394,14]
[405332804,1771008641154,-800.0,0.000394,14]
[405332805,1771008641164,-800.0,0.000394,14]
[405332806,1771008641175,-800.0,0.000394,14]
[405332807,1771008641187,-800.0,0.000394,14]
[405332808,1771008641198,-151.0,0.000394,60]
[405332809,1771008641210,-151.0,0.000394,120]
[405332810,1771008641222,-246.73407,0.000394,120]
[405332811,1771008641234,-151.0,0.000394,120]
[405332812,1771008641245,-151.0,0.000394,120]
[405332813,1771008641256,-151.0,0.000394,120]
[405332814,1771008641268,-151.0,0.000394,120]
[405332815,1771008641280,-151.0,0.000394,120]
[405332816,1771008641291,-188.066268,0.000394,120]
[405332817,1771008641303,-151.0,0.000394,120]
[405332818,1771008641315,-151.0,0.000394,120]
[405332819,1771008641328,-151.0,0.000394,120]
[405332820,1771008641339,-151.0,0.000394,120]
[405332821,1771008641351,-152.331167,0.000394,120]
[405332822,1771008641362,-151.0,0.000394,120]
[405332823,1771008641373,-151.0,0.000394,120]
[405332824,1771008641385,-151.0,0.000394,120]
[405332825,1771008641396,-151.0,0.000394,120]
[405332826,1771008641408,-159.362102,0.000394,120]
[405332827,1771008641419,-159.362102,0.000394,120]
[405332828,1771008641431,-159.362102,0.000394,120]
[405332829,1771008641443,-159.362102,0.000394,120]
[405332830,1771008641454,-151.0,0.000394,120]
[405332831,1771008641466,-151.0,0.000394,120]
[405332832,1771008641477,-151.0,0.000394,120]
[405332833,1771008641489,-160.346872,0.000394,120]
[405332834,1771008641500,-151.0,0.000394,120]
[405332835,1771008641511,-151.0,0.000394,120]
[405332836,1771008641522,-151.0,0.000394,120]
[405332837,1771008641533,-151.0,0.000394,120]
[405332838,1771008641545,-151.0,0.000394,120]
[405332839,1771008641557,-151.0,0.000394,35]
[405332840,1771008641568,-151.0,0.000394,35]
[405332841,1771008641580,-151.0,0.000394,35]
[405332842,1771008641591,-151.0,0.000394,120]
[405332843,1771008641603,-249.817687,0.000394,35]
[405332844,1771008641615,-151.0,0.000394,120]
[405332845,1771008641626,-151.0,0.000394,120]
[405332846,1771008641638,-151.0,0.000394,120]
[405332847,1771008641649,-151.0,0.000394,7]
[405332848,1771008641662,-151.0,0.000394,7]
[405332849,1771008641674,-151.0,0.000394,7]
[405332850,1771008641685,-841.0,0.00039461,11]
[405332851,1771008641697,-400.73548,0.00039488,30]
[405332852,1771008641709,-1327.05158,0.000396,120]
[405332853,1771008641722,-2000.0,0.000396,2]
[405332854,1771008641733,-215.462745,0.000396,120]
[405332855,1771008641745,-151.0,0.000396,120]
[405332856,1771008641756,-152.0,0.00039608,11]
[405332857,1771008641768,-400.73548,0.00039688,30]
[405332858,1771008641780,-45999.999999,0.000397,2]
[405332859,1771008641793,-1558.68796301,0.0003973,2]
[405332860,1771008641804,-371.94213864,0.0003973,2]
[405332861,1771008641816,-301.02860324,0.0003973,2]
[405332862,1771008641829,-300.0,0.0003973,2]
[405332863,1771008641840,-300.52729027,0.0003973,2]
[405332864,1771008641852,-300.0,0.0003973,2]
[405332865,1771008641863,-300.0,0.0003973,2]
[405332866,1771008641875,-300.0,0.0003973,2]
[405332867,1771008641886,-301.20809281,0.0003973,2]
[405332868,1771008641898,-572.79598072,0.0003973,2]
[405332869,1771008641909,-553.40092275,0.0003973,2]
[405332870,1771008641920,-1083.69896901,0.0003973,2]
[405332871,1771008641932,-1558.68796301,0.0003973,2]
[405332872,1771008641943,-300.70116688,0.0003973,2]
[405332873,1771008641955,-300.0,0.0003973,2]
[405332874,1771008641966,-300.51467445,0.0003973,2]
[405332875,1771008641978,-575.91635491,0.0003973,2]
[405332876,1771008641989,-1558.68796301,0.0003973,2]
[405332877,1771008642001,-499.96736827,0.0003973,2]
[405332878,1771008642012,-1558.68796301,0.0003973,2]
[405332879,1771008642023,-80464.15578604,0.00039781,7]
[405332880,1771008642037,-5800.0,0.0003979,14]
[405332881,1771008642049,-5800.0,0.00039798,14]
[405332882,1771008642060,-593.56,0.000398,14]
[405332883,1771008642072,-1327.05158,0.000398,120]
[405332884,1771008642085,-5800.0,0.00039807,14]
[405332885,1771008642098,-5800.0,0.00039815,14]
[405332886,1771008642112,-5800.0,0.00039824,14]
[405332887,1771008642126,-5800.0,0.00039833,14]
[405332888,1771008642138,-5800.0,0.00039841,14]
[405332889,1771008642148,-400.73548,0.00039888,30]
[405332890,1771008642158,-200.0,0.000399,14]
[405332891,1771008642168,-300.0,0.00039999,10]
[405332892,1771008642178,-500.0,0.00039999,31]
[405332893,1771008642187,-374.16268162,0.00039999,31]
[405332894,1771008642197,-500.0,0.00039999,31]
[405332895,1771008642207,-500.0,0.00039999,31]
[405332896,1771008642217,-500.0,0.00039999,31]
[405332897,1771008642226,-500.0,0.00039999,31]
[405332898,1771008642236,-500.0,0.00039999,31]
[405332899,1771008642245,-500.0,0.00039999,31]
[405332900,1771008642545,-267.21789065,0.00039999,31]
[405332901,1771008642576,-500.0,0.00039999,31]
[405332902,1771008642600,-500.0,0.00039999,31]
[405332903,1771008642613,-500.0,0.00039999,31]
[405332904,1771008642624,-500.0,0.00039999,31]
[405332905,1771008642634,-500.0,0.00039999,31]
[405332906,1771008642644,-500.0,0.00039999,31]
[405332907,1771008642654,-500.0,0.00039999,31]
[405332908,1771008642663,-500.0,0.00039999,31]
[405332909,1771008642673,-500.0,0.00039999,31]
[405332910,1771008642683,-500.0,0.00039999,31]
[405332911,1771008642693,-500.0,0.00039999,31]
[405332912,1771008642702,-500.0,0.00039999,31]
[405332913,1771008642712,-277.58394545,0.00039999,31]
[405332914,1771008642722,-500.0,0.00039999,31]
[405332915,1771008642732,-500.0,0.00039999,31]
[405332916,1771008642741,-500.0,0.00039999,31]
[405332918,1771008642751,-500.0,0.00039999,31]
[405332920,1771008642760,-500.0,0.00039999,31]
[405332922,1771008642770,-500.0,0.00039999,31]
[405332924,1771008642780,-500.0,0.00039999,31]
[405332925,1771008642790,-500.0,0.00039999,31]
[405332926,1771008642799,-500.0,0.00039999,31]
[405332927,1771008642809,-450.0,0.00039999,31]
[405332928,1771008642819,-500.0,0.00039999,31]
[405332929,1771008642830,-291.54305096,0.0004,45]
[405332930,1771008642840,-152.0,0.0004,120]
[405332931,1771008642850,-154.0,0.0004,120]
[405332932,1771008642859,-2836.61906496,0.0004,120]
[405332934,1771008642869,-507524.14598271,0.0004,120]
[405332936,1771008642879,-5045.17628874,0.0004,120]
[405332938,1771008642889,-1999.15330172,0.0004,30]
[405332940,1771008642899,-5002.12182928,0.0004,7]
[405332941,1771008642908,-3092.90790449,0.0004,120]
[405332942,1771008642917,-646.74562772,0.0004,120]
[405332943,1771008642926,-2052.82604427,0.0004,120]
[405332944,1771008642936,-18803.22318422,0.0004,120]
[405332945,1771008642946,-10741.89523399,0.0004,120]
[405332946,1771008642955,-183.61562753,0.0004,120]
[405332947,1771008642964,-222.12145776,0.0004,120]
[405332948,1771008642974,-356.0770314,0.0004,120]
[405332949,1771008642983,-760.11542978,0.0004,120]
[405332950,1771008642992,-151.0,0.0004,120]
[405332951,1771008643002,-151.0,0.0004,120]
[405332952,1771008643011,-152.302548,0.0004,120]
[405332953,1771008643021,-234.029245,0.0004,120]
[405332954,1771008643035,-151.0,0.0004,120]
[405332955,1771008643045,-2500.0,0.0004,120]
[405332956,1771008643054,-25000.0,0.0004,120]
[405332957,1771008643064,-12500.0,0.0004,120]
[405332958,1771008643075,-22500.0,0.0004,120]
[405332959,1771008643084,-2500.0,0.0004,120]
[405332960,1771008643094,-205.29879,0.0004,120]
[405332961,1771008643111,-205.29879,0.0004,120]
[405332962,1771008643121,-205.29879,0.0004,120]
[405332963,1771008643130,-151.0,0.0004,120]
[405332964,1771008643140,-205.29879,0.0004,120]
[405332965,1771008643149,-200.69896673,0.0004,120]
[405332966,1771008643159,-151.0,0.0004,120]
[405332967,1771008643169,-151.0,0.0004,120]
[405332968,1771008643179,-151.0,0.0004,120]
[405332969,1771008643188,-228.40682,0.0004,120]
[405332970,1771008643198,-151.0,0.0004,120]
[405332971,1771008643208,-151.0,0.0004,120]
[405332972,1771008643219,-151.0,0.0004,10]
[405332973,1771008643228,-217.69633,0.0004,10]
[405332974,1771008643238,-151.0,0.0004,120]
[405332975,1771008643248,-151.0,0.0004,120]
[405332976,1771008643259,-151.0,0.0004,120]
[405332977,1771008643269,-151.0,0.0004,120]
[405332978,1771008643279,-151.0,0.0004,120]
[405332979,1771008643289,-151.0,0.0004,120]
[405332980,1771008643298,-151.0,0.0004,120]
[405332981,1771008643309,-191.668851,0.0004,120]
[405332982,1771008643319,-161.63497,0.0004,120]
[405332983,1771008643329,-191.668851,0.0004,120]
[405332984,1771008643339,-191.668851,0.0004,120]
[405332985,1771008643349,-191.668851,0.0004,120]
[405332986,1771008643359,-160.0,0.0004,120]
[405332987,1771008643369,-160.0,0.0004,30]
[405332988,1771008643378,-160.0,0.0004,7]
[405332989,1771008643388,-160.530758,0.0004,120]
[405332990,1771008643398,-151.0,0.0004,120]
[405332991,1771008643407,-151.0,0.0004,120]
[405332992,1771008643417,-151.0,0.0004,120]
[405332993,1771008643427,-270.066772,0.0004,120]
[405332994,1771008643437,-192.08838,0.0004,120]
[405332995,1771008643447,-151.0,0.0004,120]
[405332996,1771008643456,-182.511517,0.0004,120]
[405332997,1771008643466,-173.38608461,0.0004,30]
[405332998,1771008643476,-173.38608461,0.0004,7]
[405332999,1771008643485,-1999.0,0.0004,120]
[405333000,1771008643495,-400.73548,0.00040088,30]
[405333001,1771008643504,-214.14,0.000402,14]
[405333002,1771008643514,-400.73548,0.00040288,30]
[405333003,1771008643523,-12500.0,0.00040375,120]
[405333004,1771008643532,-22500.0,0.00040375,120]
[405333005,1771008643542,-729.0,0.00040419,30]
[405333006,1771008643551,-1500.0,0.00040482,2]
[405333007,1771008643561,-400.73548,0.00040488,30]
[405333008,1771008643572,-195.53704402,0.0004049,7]
[405333009,1771008643582,-700.0,0.000405,120]
[405333010,1771008643591,-150996.81,0.000405,2]
[405333011,1771008643601,-2500.0,0.000405,120]
[405333012,1771008643611,-400.73548,0.00040688,30]
[405333013,1771008643621,-152.0,0.00040737,12]
[405333015,1771008643631,-11212.39,0.0004075,120]
[405333016,1771008643641,-315.05,0.0004075,120]
[405333017,1771008643650,-253.0,0.0004075,120]
[405333018,1771008643659,-1000.0,0.00040782,2]
[405333019,1771008643669,-518.8,0.00040786,30]
[405333021,1771008643679,-152.0,0.000408,120]
[405333023,1771008643689,-1999.0,0.00040821,120]
[405333025,1771008643699,-1337.0,0.00040835,2]
[405333027,1771008643708,-1288.0,0.00040835,2]
[405333029,1771008643718,-2450.0,0.00040835,2]
[405333031,1771008643727,-1500.0,0.00040882,2]
[405333032,1771008643737,-400.73548,0.00040888,30]
[405333033,1771008643746,-154.0,0.000409,120]
[405333034,1771008643756,-151.0,0.00040997,14]
[405333035,1771008643766,-2395.62820092,0.00041,30]
[405333036,1771008643775,-200.33330539,0.00041,2]
[405333037,1771008643785,-137495.847432,0.00041,120]
[405333038,1771008643794,-4040.51576498,0.00041,35]
[405333039,1771008643804,-967.68256866,0.00041,120]
[405333040,1771008643814,-20000.0,0.00041,120]
[405333041,1771008643823,-280.0,0.00041,120]
[405333042,1771008643833,-978.15807133,0.00041068,120]
[405333043,1771008643843,-300.0,0.00041068,22]
[405333044,1771008643853,-400.73548,0.00041088,30]
[405333045,1771008643863,-839.0,0.00041096,120]
[405333046,1771008643872,-179.942559,0.00041096,120]
[405333047,1771008643882,-179.942559,0.00041096,120]
[405333048,1771008643891,-179.942559,0.00041096,120]
[405333049,1771008643901,-179.942559,0.00041096,120]
[405333050,1771008643910,-179.942559,0.00041096,120]
[405333051,1771008643919,-179.942559,0.00041096,120]
[405333052,1771008643929,-179.942559,0.00041096,120]
[405333053,1771008643939,-179.942559,0.00041096,120]
[405333054,1771008643948,-593.56,0.000411,14]
[405333055,1771008643958,-200.0,0.00041178,120]
[405333056,1771008643967,-522.0,0.00041182,23]
[405333057,1771008643976,-160.0,0.000412,120]
[405333058,1771008643986,-160.0,0.000412,7]
[405333059,1771008643995,-173.38608461,0.000412,7]
[405333060,1771008644004,-2822.49222,0.0004123,120]
[405333061,1771008644014,-400.73548,0.00041288,30]
[405333062,1771008644024,-800.0,0.00041326,13]
[405333063,1771008644036,-800.0,0.00041326,13]
[405333064,1771008644045,-800.0,0.00041326,13]
[405333065,1771008644054,-800.0,0.00041326,13]
[405333066,1771008644064,-800.0,0.00041326,13]
[405333067,1771008644076,-370.0,0.00041326,13]
[405333068,1771008644086,-3588.85897506,0.00041388,2]
[405333069,1771008644095,-152.12,0.00041398,120]
[405333070,1771008644107,-1068.75491679,0.00041414,120]
[405333071,1771008644117,-16186.53,0.00041471,2]
[405333072,1771008644127,-400.73548,0.00041488,30]
[405333073,1771008644137,-152.12,0.00041498,120]
[405333074,1771008644147,-1999.99999901,0.000415,120]
[405333075,1771008644156,-256.7657954,0.000415,120]
[405333076,1771008644166,-1035.8,0.00041526,30]
[405333077,1771008644176,-743.0,0.00041557,30]
[405333078,1771008644185,-732.0,0.00041561,30]
[405333079,1771008644195,-749.0,0.00041577,30]
[405333080,1771008644204,-152.12,0.00041598,120]
[405333081,1771008644214,-152.0,0.000416,120]
[405333082,1771008644224,-746.0,0.00041637,30]
[405333083,1771008644233,-839.0,0.00041644,120]
[405333084,1771008644245,-400.73548,0.00041688,30]
[405333085,1771008644255,-152.12,0.00041698,120]
[405333086,1771008644265,-10481.0,0.000417,117]
[405333087,1771008644275,-152.12,0.00041798,120]
[405333088,1771008644285,-150996.81,0.000418,2]
[405333089,1771008644294,-350.0,0.00041805,3]
[405333090,1771008644304,-152.0,0.00041866,13]
[405333091,1771008644314,-400.73548,0.00041888,30]
[405333092,1771008644327,-152.12,0.00041898,120]
[405333093,1771008644337,-154.0,0.000419,120]
[405333094,1771008644346,-152.12,0.00041998,120]
[405333095,1771008644356,-1000.0,0.00042,120]
[405333096,1771008644366,-1000.0,0.00042,120]
[405333097,1771008644375,-1000.0,0.00042,120]
[405333098,1771008644385,-865.0,0.00042,120]
[405333099,1771008644394,-1025.0,0.00042,2]
[405333100,1771008644404,-199.0,0.00042,30]
[405333101,1771008644413,-17839.37609519,0.00042,120]
[405333102,1771008644422,-1324.422999,0.00042,2]
[405333103,1771008644432,-6190.01431833,0.00042,120]
[405333104,1771008644442,-177.46649131,0.00042,120]
[405333105,1771008644452,-2741.24019052,0.00042,30]
[405333106,1771008644462,-160.00264688,0.00042,120]
[405333107,1771008644472,-20427.32705973,0.00042,120]
[405333108,1771008644481,-32264.63076746,0.00042,120]
[405333109,1771008644491,-500.0,0.00042,2]
[405333110,1771008644500,-46579.36786552,0.00042,30]
[405333111,1771008644510,-19387.2891267,0.00042,120]
[405333112,1771008644519,-184.16746561,0.00042,120]
[405333113,1771008644530,-1432.56480477,0.00042,30]
[405333114,1771008644539,-1329.24941726,0.00042,30]
[405333115,1771008644549,-271.00462735,0.00042,60]
[405333116,1771008644559,-160.0,0.00042,30]
[405333117,1771008644569,-189.285564,0.00042,120]
[405333118,1771008644582,-173.38608461,0.00042,30]
[405333119,1771008644592,-280.0,0.00042,120]
[405333120,1771008644602,-500.0,0.00042,120]
[405333121,1771008644611,-729.0,0.00042,30]
[405333122,1771008644621,-1343.12,0.00042009,120]
[405333123,1771008644630,-1365.4057294,0.0004201,2]
[405333124,1771008644640,-152.12,0.00042098,120]
[405333125,1771008644649,-593.56,0.000421,14]
[405333126,1771008644659,-374.06,0.000421,30]
[405333127,1771008644668,-582.0,0.000421,3]
[405333128,1771008644677,-500.0,0.00042191,60]
[405333129,1771008644687,-500.0,0.00042191,60]
[405333130,1771008644696,-1100.0,0.00042191,60]
[405333131,1771008644706,-839.0,0.00042192,120]
[405333132,1771008644716,-152.12,0.00042198,120]
[405333133,1771008644726,-5639.75410756,0.000422,2]
[405333134,1771008644735,-197.961281,0.000422,60]
[405333135,1771008644745,-151.0,0.000422,120]
[405333136,1771008644755,-151.0,0.000422,120]
[405333137,1771008644764,-151.0,0.000422,120]
[405333138,1771008644773,-151.0,0.000422,120]
[405333139,1771008644783,-151.0,0.000422,120]
[405333140,1771008644792,-151.0,0.000422,120]
[405333141,1771008644801,-151.0,0.000422,120]
[405333142,1771008644811,-204.272542,0.000422,120]
[405333143,1771008644820,-300.97986,0.000422,120]
[405333144,1771008644832,-158.891346,0.000422,120]
[405333145,1771008644841,-151.0,0.000422,120]
[405333146,1771008644850,-151.0,0.000422,120]
[405333147,1771008644859,-151.0,0.000422,120]
[405333148,1771008644869,-159.362102,0.000422,120]
[405333149,1771008644878,-159.362102,0.000422,120]
[405333150,1771008644888,-159.362102,0.000422,120]
[405333151,1771008644898,-159.362102,0.000422,120]
[405333152,1771008644908,-151.0,0.000422,120]
[405333153,1771008644918,-151.0,0.000422,120]
[405333154,1771008644927,-161.691043,0.000422,120]
[405333155,1771008644937,-167.65129,0.000422,120]
[405333156,1771008644946,-151.0,0.000422,120]
[405333157,1771008644956,-152.12,0.00042298,120]
[405333158,1771008644966,-152.12,0.00042398,120]
[405333159,1771008644975,-160.0,0.000424,120]
[405333160,1771008644984,-173.38608461,0.000424,7]
[405333161,1771008644994,-350.0,0.00042429,4]
[405333162,1771008645003,-659.06,0.00042438,120]
[405333163,1771008645012,-152.12,0.00042498,120]
[405333164,1771008645022,-152.0,0.000425,120]
[405333165,1771008645032,-7076.04427801,0.000425,10]
[405333166,1771008645044,-2570.87078,0.000425,120]
[405333167,1771008645053,-249.35066908,0.000425,120]
[405333168,1771008645063,-500.0,0.000425,120]
[405333169,1771008645076,-641.60832238,0.0004252,2]
[405333170,1771008645086,-200.0,0.0004254,120]
[405333171,1771008645096,-659.06,0.00042575,120]
[405333172,1771008645110,-164.0,0.00042578,16]
[405333173,1771008645120,-152.12,0.00042598,120]
[405333174,1771008645129,-841.0,0.00042698,16]
[405333175,1771008645139,-152.12,0.00042698,120]
[405333176,1771008645148,-214.14,0.000427,14]
[405333177,1771008645158,-350.0,0.00042702,3]
[405333178,1771008645167,-659.06,0.00042712,120]
[405333179,1771008645177,-1100.0,0.00042739,60]
[405333180,1771008645186,-839.0,0.0004274,120]
[405333181,1771008645196,-4000.0,0.0004274,14]
[405333182,1771008645206,-1000.0,0.00042782,2]
[405333183,1771008645217,-1314.08050614,0.00042782,2]
[405333184,1771008645226,-152.12,0.00042798,120]
[405333185,1771008645236,-154.0,0.000428,120]
[405333186,1771008645245,-659.06,0.00042849,120]
[405333187,1771008645255,-500.51560939,0.0004288,120]
[405333188,1771008645265,-152.12,0.00042898,120]
[405333189,1771008645276,-151.0,0.000429,120]
[405333190,1771008645285,-209.616945,0.000429,120]
[405333191,1771008645295,-151.0,0.000429,35]
[405333192,1771008645304,-151.0,0.000429,35]
[405333193,1771008645314,-151.0,0.000429,35]
[405333194,1771008645323,-151.0,0.000429,120]
[405333195,1771008645334,-151.0,0.000429,120]
[405333196,1771008645343,-278.24896,0.000429,120]
[405333197,1771008645353,-151.0,0.000429,120]
[405333198,1771008645362,-151.0,0.000429,7]
[405333199,1771008645372,-151.0,0.000429,7]
[405333200,1771008645382,-153.332992,0.000429,7]
[405333201,1771008645391,-151.0,0.000429,120]
[405333202,1771008645400,-152.959201,0.000429,120]
[405333203,1771008645413,-151.0,0.000429,120]
[405333204,1771008645422,-417.505045,0.000429,120]
[405333205,1771008645432,-268.00347,0.000429,120]
[405333206,1771008645442,-417.505045,0.000429,120]
[405333207,1771008645451,-2762.32849186,0.000429,28]
[405333208,1771008645461,-417.505045,0.000429,120]
[405333209,1771008645471,-417.505045,0.000429,120]
[405333210,1771008645480,-425.820293,0.000429,120]
[405333211,1771008645490,-159.535337,0.000429,7]
[405333212,1771008645499,-159.535337,0.000429,7]
[405333213,1771008645509,-159.535337,0.000429,7]
[405333214,1771008645518,-425.820293,0.000429,120]
[405333215,1771008645527,-151.0,0.000429,120]
[405333216,1771008645537,-159.535337,0.000429,7]
[405333217,1771008645546,-425.820293,0.000429,120]
[405333218,1771008645555,-151.0,0.000429,120]
[405333219,1771008645565,-425.820293,0.000429,120]
[405333220,1771008645576,-151.0,0.000429,120]
[405333221,1771008645585,-151.0,0.000429,120]
[405333222,1771008645594,-151.0,0.000429,120]
[405333223,1771008645603,-151.0,0.000429,120]
[405333224,1771008645612,-151.0,0.000429,120]
[405333225,1771008645621,-4865.8519514,0.000429,120]
[405333226,1771008645630,-151.0,0.000429,31]
[405333227,1771008645640,-151.0,0.000429,31]
[405333228,1771008645649,-196.362188,0.000429,120]
[405333229,1771008645659,-4865.85195124,0.000429,120]
[405333230,1771008645668,-284.605915,0.000429,120]
[405333231,1771008645677,-196.362188,0.000429,120]
[405333232,1771008645686,-809.655689,0.000429,120]
[405333233,1771008645696,-284.605915,0.000429,120]
[405333234,1771008645705,-196.362188,0.000429,120]
[405333235,1771008645714,-151.0,0.000429,120]
[405333236,1771008645723,-809.655689,0.000429,120]
[405333237,1771008645733,-284.605915,0.000429,120]
[405333239,1771008645742,-4865.85195124,0.000429,120]
[405333240,1771008645751,-196.362188,0.000429,120]
[405333241,1771008645761,-809.655689,0.000429,120]
[405333242,1771008645770,-284.605915,0.000429,120]
[405333243,1771008645780,-809.655689,0.000429,120]
[405333244,1771008645790,-151.0,0.000429,120]
[405333246,1771008645799,-4865.85195124,0.000429,120]
[405333247,1771008645809,-155.036509,0.000429,120]
[405333248,1771008645961,-4865.85195124,0.000429,120]
[405333249,1771008645978,-4865.85195124,0.000429,120]
[405333250,1771008645988,-4865.85195124,0.000429,120]
[405333251,1771008645997,-4865.85195124,0.000429,120]
[405333252,1771008646007,-151.0,0.000429,120]
[405333253,1771008646016,-151.0,0.000429,120]
[405333254,1771008646026,-168.30118,0.000429,120]
[405333255,1771008646039,-151.0,0.000429,120]
[405333256,1771008646048,-151.0,0.000429,120]
[405333257,1771008646058,-151.0,0.000429,120]
[405333258,1771008646067,-4865.85195124,0.000429,120]
[405333259,1771008646078,-151.0,0.000429,120]
[405333260,1771008646088,-171.009639,0.000429,120]
[405333261,1771008646100,-4865.85195124,0.000429,120]
[405333262,1771008646111,-264.185097,0.000429,120]
[405333263,1771008646121,-151.0,0.000429,120]
[405333264,1771008646130,-151.0,0.000429,120]
[405333265,1771008646140,-4865.85195124,0.000429,120]
[405333266,1771008646149,-151.0,0.000429,120]
[405333267,1771008646159,-151.0,0.000429,120]
[405333268,1771008646168,-151.0,0.000429,120]
[405333269,1771008646178,-151.0,0.000429,120]
[405333270,1771008646187,-151.0,0.000429,120]
[405333271,1771008646196,-151.0,0.000429,120]
[405333272,1771008646205,-151.0,0.000429,120]
[405333273,1771008646215,-151.0,0.000429,120]
[405333274,1771008646224,-4865.85195124,0.000429,120]